bitfinex/quotes_BTCUSD_20240828
["timestamp","ask_amount","ask_price","bid_price","bid_amount"]
[1724873945479,0.002,59352.0,59351.0,0.18692913]
[1724873945480,0.001,59352.0,59351.0,0.18692913]
[1724873945703,0.002,59352.0,59351.0,0.60020713]
[1724873946386,0.002,59352.0,59351.0,0.09474013]
[1724873946644,0.003,59352.0,59351.0,0.09474013]
[1724873947119,0.171486,59352.0,59351.0,0.09474013]
[1724873947394,0.002,59352.0,59351.0,0.0767]
[1724873947610,0.003,59352.0,59351.0,0.0767]
[1724873948059,0.170486,59352.0,59351.0,0.0767]
[1724873948341,0.21615695,59352.0,59351.0,0.09474013]
[1724873948556,0.002,59352.0,59351.0,0.0867]
[1724873948777,0.19591203,59352.0,59351.0,0.09474013]
[1724873949252,0.19691203,59352.0,59351.0,0.10474013]
[1724873949472,0.02742603,59352.0,59351.0,0.09474013]
[1724873949706,0.02842603,59352.0,59351.0,0.10474013]
[1724873949951,0.02942603,59352.0,59351.0,0.10474013]
[1724873950166,0.02942603,59352.0,59351.0,0.10564103]
[1724873950387,0.03381414,59352.0,59351.0,0.10564103]
[1724873950604,0.03481414,59352.0,59351.0,0.10564103]
[1724873950832,0.20330014,59352.0,59351.0,0.10564103]
[1724873951073,0.03481414,59352.0,59351.0,0.10564103]
[1724873951325,0.02742603,59352.0,59351.0,0.09564103]
[1724873951772,0.02842603,59352.0,59351.0,0.26613003]
[1724873951994,0.02842603,59352.0,59351.0,1.33956403]
[1724873952231,0.02942603,59352.0,59351.0,1.34156403]
[1724873952446,0.02842603,59352.0,59351.0,1.33956403]
[1724873953120,0.02742603,59352.0,59351.0,1.67654203]
[1724873953609,0.000819,59372.0,59371.0,0.585996]
[1724873953832,0.000819,59372.0,59371.0,0.98676]
[1724873954051,0.000819,59372.0,59371.0,1.00467012]
[1724873954274,0.000819,59372.0,59371.0,0.66780612]
[1724873954482,0.000819,59372.0,59371.0,0.66680612]
[1724873954729,0.000819,59372.0,59371.0,0.32994212]
[1724873954946,0.000819,59372.0,59371.0,0.09961012]
[1724873955201,0.000819,59372.0,59371.0,0.10561012]
[1724873955202,0.170248,59372.0,59371.0,0.10561012]
[1724873955441,0.507107,59372.0,59371.0,0.006]
[1724873955676,0.507107,59372.0,59371.0,0.02414682]
[1724873955914,0.53352673,59372.0,59371.0,0.006]
[1724873956136,0.87038573,59372.0,59371.0,0.02414682]
[1724873956363,0.168443,59368.0,59363.0,0.0817]
[1724873956589,0.168435,59370.0,59363.0,0.0817]
[1724873956807,0.168434,59371.0,59366.0,0.168445]
[1724873957296,0.36409773,59372.0,59364.0,0.18664332]
[1724873957519,0.168439,59369.0,59367.0,0.01816828]
[1724873957747,0.168439,59369.0,59365.0,0.168447]
[1724873957964,0.168439,59369.0,59368.0,0.01399836]
[1724873958176,0.001,59368.0,59365.0,0.168447]
[1724873958824,0.00079727,59368.0,59365.0,0.168447]
[1724873959699,0.168439,59369.0,59365.0,0.168447]
[1724873959932,0.168439,59369.0,59365.0,0.175447]
[1724873960145,0.36953969,59372.0,59366.0,0.168445]
[1724873960375,0.36953969,59372.0,59363.0,0.0817]
[1724873960376,0.168438,59369.0,59364.0,0.168449]
[1724873960600,0.168438,59369.0,59365.0,0.168448]
[1724873960818,0.168442,59368.0,59365.0,0.008]
[1724873961049,0.336882,59368.0,59365.0,0.008]
[1724873961265,0.336893,59366.0,59363.0,0.0817]
[1724873961510,0.336883,59368.0,59363.0,0.0817]
[1724873961725,0.00626096,59372.0,59363.0,0.0817]
[1724873961940,0.168448,59366.0,59363.0,0.0817]
[1724873962173,0.02642052,59367.0,59365.0,0.0009009]
[1724873962444,0.02642052,59367.0,59366.0,0.168446]
[1724873962664,0.02642052,59367.0,59366.0,0.584239]
[1724873962891,0.02642052,59367.0,59366.0,0.921132]
[1724873963108,0.02642052,59367.0,59366.0,0.987132]
[1724873963323,0.02642052,59367.0,59366.0,0.650239]
[1724873964231,0.02642052,59367.0,59366.0,0.66892163]
[1724873964493,0.02742052,59367.0,59366.0,0.68192163]
[1724873966040,0.02742052,59367.0,59366.0,0.34502863]
[1724873966285,0.02742052,59367.0,59366.0,0.68192163]
[1724873967422,0.02742052,59367.0,59366.0,1.35570763]
[1724873968093,0.02742052,59367.0,59366.0,1.01881463]
[1724873968312,0.02742052,59367.0,59366.0,0.34502863]
[1724873968540,0.02742052,59367.0,59366.0,0.68192163]
[1724873968987,0.02742052,59367.0,59366.0,0.34502863]
[1724873969426,0.02742052,59367.0,59366.0,0.68192163]
[1724873969639,0.02742052,59367.0,59366.0,0.34502863]
[1724873973462,0.02742052,59367.0,59366.0,0.34592953]
[1724873973680,0.02742052,59367.0,59366.0,0.68282253]
[1724873974990,0.02742052,59367.0,59366.0,1.35660853]
[1724873976130,0.02742052,59367.0,59366.0,1.01971553]
[1724873978542,0.02742052,59367.0,59366.0,0.03258353]
[1724873978543,0.86963752,59367.0,59366.0,0.03258353]
[1724873979014,0.86963752,59367.0,59366.0,0.0139009]
[1724873979263,0.53275052,59367.0,59366.0,0.0139009]
[1724873979469,0.86863752,59367.0,59366.0,0.0009009]
[1724873980327,0.8751957,59367.0,59366.0,0.0089009]
[1724873981507,0.8741957,59367.0,59366.0,0.0009009]
[1724873981733,0.87399297,59367.0,59366.0,0.0059009]
[1724873982326,0.87399297,59367.0,59366.0,0.0009009]
[1724873982513,0.53710597,59367.0,59366.0,0.0029009]
[1724873982712,0.02621779,59367.0,59366.0,0.0029009]
[1724873983036,0.02621779,59367.0,59366.0,0.66515054]
[1724873983196,0.02621779,59367.0,59366.0,1.00204354]
[1724873983823,0.02621779,59367.0,59366.0,1.00504354]
[1724873985260,0.02621779,59367.0,59366.0,1.00204354]
[1724873985725,0.02721779,59367.0,59366.0,1.01304354]
[1724873985927,0.02721779,59367.0,59366.0,0.67615054]
[1724873986393,0.02721779,59367.0,59366.0,1.01304354]
[1724873988078,0.02721779,59367.0,59366.0,1.34993654]
[1724873988278,0.02721779,59367.0,59366.0,1.68682954]
[1724873988878,0.02721779,59367.0,59366.0,1.68882954]
[1724873989080,0.02621779,59367.0,59366.0,1.67782954]
[1724873989333,0.02721779,59367.0,59366.0,1.69182954]
[1724873989859,0.02621779,59367.0,59366.0,1.67782954]
[1724873990287,0.02721779,59367.0,59366.0,1.69182954]
[1724873990935,0.02721779,59367.0,59366.0,1.69482953]
[1724873991590,0.02621779,59367.0,59366.0,1.68282953]
[1724873991853,0.02121779,59367.0,59366.0,1.68282953]
[1724873992043,0.02121779,59367.0,59366.0,1.69682953]
[1724873992166,0.02121779,59367.0,59366.0,1.69482953]
[1724873992371,0.000819,59368.0,59367.0,1.66389099]
[1724873992698,0.000819,59368.0,59367.0,1.67923172]
[1724873993741,0.000819,59368.0,59367.0,1.68123172]
[1724873994305,0.000819,59368.0,59367.0,1.67923172]
[1724873994710,0.000819,59368.0,59367.0,1.69323172]
[1724873995245,0.000819,59368.0,59367.0,1.67923172]
[1724873995655,0.000819,59368.0,59367.0,1.69523172]
[1724873998898,0.000819,59368.0,59367.0,2.03211872]
[1724873999316,0.000819,59368.0,59367.0,2.14211872]
[1724874000411,0.000819,59368.0,59367.0,1.80523172]
[1724874000611,0.000819,59368.0,59367.0,1.80323172]
[1724874000847,0.57273046,59393.0,59367.0,1.80323172]
[1724874000848,0.168396,59384.0,59381.0,0.168402]
[1724874001073,0.168402,59382.0,59378.0,0.168411]
[1724874001304,0.168402,59382.0,59367.0,0.53122773]
[1724874001305,0.569794,59383.0,59382.0,0.01564115]
[1724874001533,0.569794,59383.0,59367.0,0.182442]
[1724874001534,0.569794,59383.0,59367.0,0.014]
[1724874001535,0.0646,59378.0,59367.0,0.014]
[1724874001781,0.168426,59373.0,59372.0,0.50540786]
[1724874002021,0.168433,59371.0,59366.0,0.1693449]
[1724874002232,0.168435,59370.0,59366.0,0.1693449]
[1724874002445,0.168435,59370.0,59366.0,0.0009009]
[1724874002872,0.336876,59369.0,59366.0,0.0009009]
[1724874003106,1.13840446,59367.0,59366.0,0.0009009]
[1724874003552,0.168441,59368.0,59366.0,0.0009009]
[1724874003772,0.03177633,59370.0,59366.0,0.0009009]
[1724874003773,0.168443,59367.0,59366.0,0.0009009]
[1724874003979,0.50533,59367.0,59366.0,0.0009009]
[1724874004423,0.168443,59367.0,59366.0,0.0059009]
[1724874004678,0.50533,59367.0,59366.0,0.0059009]
[1724874004873,0.168443,59367.0,59366.0,0.0009009]
[1724874005087,0.168439,59369.0,59366.0,0.0009009]
[1724874005305,0.03177633,59370.0,59366.0,0.1753459]
[1724874005728,0.03177633,59370.0,59366.0,0.0069009]
[1724874005948,0.03177633,59370.0,59366.0,0.0009009]
[1724874005949,0.168439,59369.0,59366.0,0.0009009]
[1724874006582,0.03177633,59370.0,59366.0,0.0009009]
[1724874006795,0.168438,59369.0,59366.0,0.0009009]
[1724874007209,0.03177633,59370.0,59366.0,0.0009009]
[1724874007428,0.03177633,59370.0,59369.0,0.505314]
[1724874007429,0.0264184,59370.0,59369.0,0.505314]
[1724874007852,0.0264184,59370.0,59369.0,0.84119]
[1724874008552,0.0264184,59370.0,59369.0,0.168438]
[1724874008774,0.0264184,59370.0,59369.0,0.178438]
[1724874008775,0.0274184,59370.0,59369.0,0.178438]
[1724874008991,0.0274184,59370.0,59369.0,0.19112086]
[1724874009406,0.0274184,59370.0,59369.0,0.52799686]
[1724874009615,0.0274184,59370.0,59369.0,0.94727286]
[1724874009840,0.0274184,59370.0,59369.0,1.28414886]
[1724874010044,0.0274184,59370.0,59369.0,1.34944886]
[1724874010247,0.0274184,59370.0,59369.0,1.33944886]
[1724874010248,0.0264184,59370.0,59369.0,1.33944886]
[1724874010446,0.0274184,59370.0,59369.0,1.34744886]
[1724874010861,0.0274184,59370.0,59369.0,1.68432486]
[1724874011087,0.0264184,59370.0,59369.0,1.67632486]
[1724874011284,0.0274184,59370.0,59369.0,1.68732486]
[1724874011907,0.0264184,59370.0,59369.0,1.67632486]
[1724874013149,0.0264184,59370.0,59369.0,1.69032486]
[1724874014251,0.0264184,59370.0,59369.0,1.74795884]
[1724874014903,0.168422,59375.0,59371.0,0.16843]
[1724874015133,0.16842,59376.0,59371.0,0.168431]
[1724874015330,0.30028746,59381.0,59372.0,0.01263863]
[1724874015550,0.30028746,59381.0,59375.0,0.168419]
[1724874015776,0.336796,59383.0,59370.0,0.00336855]
[1724874015777,0.05014015,59383.0,59380.0,0.168405]
[1724874015990,0.168399,59383.0,59381.0,0.01258104]
[1724874016240,0.12042833,59386.0,59381.0,0.34938804]
[1724874016241,0.07028818,59386.0,59381.0,0.34938804]
[1724874016454,0.0647,59386.0,59385.0,0.168392]
[1724874016671,0.336751,59391.0,59381.0,0.34938804]
[1724874016672,0.21851615,59391.0,59384.0,0.336785]
[1724874016886,0.05014015,59395.0,59386.0,0.0808]
[1724874017105,0.39234906,59396.0,59386.0,0.0808]
[1724874017334,0.336737,59394.0,59386.0,0.0808]
[1724874017600,0.05562306,59396.0,59393.0,0.168367]
[1724874017835,0.168359,59397.0,59394.0,0.01249661]
[1724874018054,0.168359,59397.0,59389.0,0.336759]
[1724874018055,0.268364,59396.0,59392.0,0.168371]
[1724874018271,0.268364,59396.0,59395.0,0.01248792]
[1724874018272,0.268361,59396.0,59395.0,0.01248792]
[1724874018495,0.168367,59394.0,59389.0,0.168378]
[1724874018747,0.168367,59394.0,59388.0,0.336767]
[1724874018947,0.168367,59394.0,59390.0,0.18086392]
[1724874019203,0.168367,59394.0,59391.0,0.01248042]
[1724874019400,0.02641154,59394.0,59391.0,0.18085442]
[1724874020063,0.02641154,59394.0,59391.0,0.01248042]
[1724874020064,0.168372,59392.0,59391.0,0.01248042]
[1724874020273,0.505117,59392.0,59391.0,0.01248042]
[1724874020510,0.505117,59392.0,59381.0,0.50540786]
[1724874020511,0.168403,59382.0,59381.0,0.50540786]
[1724874020947,0.168403,59382.0,59381.0,0.0125391]
[1724874020948,0.168402,59382.0,59381.0,0.0125391]
[1724874021182,0.168402,59382.0,59376.0,0.0808]
[1724874021183,0.02641336,59382.0,59379.0,0.168409]
[1724874021433,0.02641336,59382.0,59380.0,0.01254559]
[1724874021637,0.02641336,59382.0,59381.0,0.168404]
[1724874021864,0.02641336,59382.0,59381.0,0.0125391]
[1724874022308,0.02641336,59382.0,59379.0,0.168408]
[1724874022539,0.02641336,59382.0,59381.0,0.0125391]
[1724874022753,0.02641336,59382.0,59380.0,0.01254559]
[1724874022950,0.02641336,59382.0,59381.0,0.0125391]
[1724874023164,0.02641336,59382.0,59379.0,0.176408]
[1724874023377,0.02641336,59382.0,59380.0,0.01254559]
[1724874024020,0.02641336,59382.0,59381.0,0.585912]
[1724874024233,0.02641336,59382.0,59381.0,0.593912]
[1724874024492,0.02641336,59382.0,59381.0,0.2696431]
[1724874024719,0.02641336,59382.0,59381.0,0.5984511]
[1724874026760,0.02641336,59382.0,59381.0,0.6094511]
[1724874027423,0.02641336,59382.0,59381.0,0.0125391]
[1724874027634,0.02641336,59382.0,59381.0,0.1929431]
[1724874027865,0.02641336,59382.0,59381.0,0.517212]
[1724874028079,0.02641336,59382.0,59381.0,0.52974823]
[1724874028292,0.02641336,59382.0,59381.0,0.19294023]
[1724874028963,0.02641336,59382.0,59381.0,0.51774823]
[1724874029157,0.02641336,59382.0,59381.0,0.52874823]
[1724874029858,0.02641336,59382.0,59381.0,0.51774823]
[1724874030099,0.02641336,59382.0,59381.0,0.52774823]
[1724874030535,0.02641336,59382.0,59381.0,0.51774823]
[1724874030963,0.02641336,59382.0,59381.0,0.52874823]
[1724874031173,0.02641336,59382.0,59381.0,0.94095623]
[1724874031395,0.02641336,59382.0,59381.0,1.00535623]
[1724874032027,0.02641336,59382.0,59381.0,0.66854823]
[1724874033456,0.02641336,59382.0,59381.0,0.60414823]
[1724874033868,0.40437446,59387.0,59383.0,0.168398]
[1724874034287,0.02641324,59386.0,59384.0,0.00977561]
[1724874034710,0.02641324,59386.0,59383.0,0.168398]
[1724874034940,0.02641324,59386.0,59385.0,0.17816475]
[1724874035110,0.02641324,59386.0,59385.0,0.168392]
[1724874035335,0.02641324,59386.0,59385.0,0.00977275]
[1724874037031,0.02641324,59386.0,59385.0,1.33531975]
[1724874037248,0.02641324,59386.0,59385.0,1.67910475]
[1724874037457,0.02641324,59386.0,59385.0,1.74173872]
[1724874037884,0.02641324,59386.0,59385.0,1.74373872]
[1724874038092,0.000819,59392.0,59391.0,1.66717899]
[1724874038294,0.000819,59392.0,59391.0,1.662179]
[1724874038509,0.000819,59392.0,59391.0,1.67349748]
[1724874038718,0.000819,59392.0,59391.0,0.99999548]
[1724874038719,0.02722565,59392.0,59391.0,0.99999548]
[1724874040016,0.02722565,59392.0,59391.0,1.01399548]
[1724874040243,0.02722565,59392.0,59391.0,1.35074648]
[1724874040921,0.02722565,59392.0,59391.0,1.69249747]
[1724874041131,0.02722565,59392.0,59391.0,1.41338045]
[1724874041558,0.02722565,59392.0,59391.0,1.39938045]
[1724874041795,0.02722565,59392.0,59391.0,1.41338045]
[1724874042010,0.02722565,59392.0,59391.0,1.75013145]
[1724874042229,0.02722565,59392.0,59391.0,1.75213145]
[1724874042465,0.02722565,59392.0,59391.0,1.73813145]
[1724874042680,0.02722565,59392.0,59391.0,1.75213145]
[1724874042891,0.02722565,59392.0,59391.0,1.41338045]
[1724874043162,0.000819,59392.0,59391.0,1.41338045]
[1724874043395,0.000819,59392.0,59391.0,1.40138045]
[1724874043625,0.000819,59392.0,59391.0,1.75213145]
[1724874046188,0.000819,59392.0,59391.0,1.85213145]
[1724874046398,0.02640739,59397.0,59396.0,1.57081745]
[1724874046610,0.000819,59408.0,59407.0,0.99095]
[1724874046819,0.000819,59408.0,59407.0,1.32761]
[1724874047002,0.000819,59408.0,59407.0,1.33884252]
[1724874048112,0.02722056,59408.0,59407.0,1.33884252]
[1724874049225,0.02722056,59408.0,59407.0,1.35284252]
[1724874049718,0.02722056,59408.0,59407.0,1.33884252]
[1724874049917,0.02722056,59408.0,59407.0,1.38406911]
[1724874052050,0.02722056,59408.0,59407.0,1.72272911]
[1724874052263,0.000819,59408.0,59407.0,1.70672911]
[1724874052474,0.000819,59408.0,59407.0,1.37006911]
[1724874052684,0.000819,59408.0,59407.0,1.38406911]
[1724874053334,0.000819,59408.0,59407.0,1.37006911]
[1724874053511,0.000819,59408.0,59407.0,1.38406911]
[1724874053957,0.02722037,59408.0,59407.0,1.38406911]
[1724874054386,0.02722037,59408.0,59407.0,1.04740911]
[1724874054868,0.02722037,59408.0,59407.0,1.03340911]
[1724874055326,0.02722037,59408.0,59407.0,1.04740911]
[1724874055752,0.02722037,59408.0,59407.0,1.03340911]
[1724874055983,0.02722037,59408.0,59407.0,1.04740911]
[1724874058615,0.02722037,59408.0,59407.0,1.38406911]
[1724874062463,0.02722037,59408.0,59407.0,1.04740911]
[1724874064103,0.02722037,59408.0,59407.0,1.03540911]
[1724874066466,0.02722037,59408.0,59407.0,0.05645911]
[1724874066668,0.02722037,59408.0,59407.0,0.62831659]
[1724874066841,0.02722037,59408.0,59407.0,1.03728675]
[1724874067038,0.02722037,59408.0,59407.0,1.37394675]
[1724874067039,0.000819,59408.0,59407.0,1.37394675]
[1724874067382,0.02722079,59408.0,59407.0,1.37394675]
[1724874068249,0.02722079,59408.0,59407.0,0.63942675]
[1724874068543,0.02722079,59408.0,59407.0,0.05633675]
[1724874069163,0.19554779,59408.0,59407.0,0.05633675]
[1724874069376,0.55860179,59408.0,59407.0,0.05633675]
[1724874069586,0.55860179,59408.0,59407.0,0.03122659]
[1724874070695,0.89525579,59408.0,59407.0,0.03122659]
[1724874070914,0.0264,59400.0,59398.0,0.67376286]
[1724874071151,0.09132079,59408.0,59398.0,0.67376286]
[1724874071152,0.230842,59403.0,59398.0,0.67376286]
[1724874071362,0.230842,59403.0,59399.0,0.17950611]
[1724874071569,0.230842,59403.0,59399.0,0.168352]
[1724874071774,0.02640441,59402.0,59400.0,0.01115078]
[1724874072208,0.02640441,59402.0,59401.0,0.168347]
[1724874072443,0.02640441,59402.0,59401.0,0.505041]
[1724874072650,0.02640441,59402.0,59401.0,0.51618845]
[1724874073914,0.02640441,59402.0,59401.0,0.85288245]
[1724874074332,0.02640441,59402.0,59401.0,0.86088245]
[1724874074776,0.02640441,59402.0,59401.0,0.85288245]
[1724874075261,0.02640441,59402.0,59401.0,0.86588245]
[1724874075698,0.02640441,59402.0,59401.0,0.85288245]
[1724874075949,0.02640441,59402.0,59401.0,1.20357645]
[1724874076390,0.02640441,59402.0,59401.0,0.86688245]
[1724874077241,0.02640441,59402.0,59401.0,0.17949445]
[1724874077471,0.19474841,59402.0,59401.0,0.02514745]
[1724874077707,0.53143741,59402.0,59401.0,0.014]
[1724874077923,0.86812641,59402.0,59401.0,0.014]
[1724874078151,0.841722,59402.0,59401.0,0.014]
[1724874078604,0.30038746,59415.0,59401.0,0.1565]
[1724874078862,0.336643,59411.0,59402.0,0.00336646]
[1724874079079,0.0264,59407.0,59402.0,0.01117785]
[1724874079294,0.168334,59406.0,59402.0,0.01117785]
[1724874079519,0.168334,59406.0,59399.0,0.36792759]
[1724874079520,0.401577,59404.0,59403.0,0.01117451]
[1724874079759,1.50565646,59404.0,59403.0,0.01117451]
[1724874079957,0.841777,59398.0,59397.0,0.0008998]
[1724874080210,0.841777,59398.0,59391.0,0.0008998]
[1724874080211,0.505117,59392.0,59391.0,0.0008998]
[1724874080430,1.16464946,59392.0,59391.0,0.0008998]
[1724874081074,1.50139446,59392.0,59391.0,0.0008998]
[1724874081530,1.50691862,59392.0,59391.0,0.0008998]
[1724874081956,1.50691862,59392.0,59391.0,0.0018998]
[1724874083062,1.53834049,59392.0,59391.0,0.0018998]
[1724874083919,0.54206303,59392.0,59391.0,0.0008998]
[1724874084392,0.54306303,59392.0,59391.0,0.0008998]
[1724874084812,0.54206303,59392.0,59391.0,0.0008998]
[1724874085018,0.54306303,59392.0,59391.0,0.0008998]
[1724874085233,0.001,59392.0,59391.0,0.0008998]
[1724874085488,0.001,59392.0,59391.0,0.2470748]
[1724874085717,0.168368,59394.0,59391.0,0.01219189]
[1724874085941,0.1,59395.0,59391.0,0.18056689]
[1724874086160,0.1,59395.0,59391.0,0.01219189]
[1724874086827,0.1,59396.0,59391.0,0.01219189]
[1724874087043,0.1,59396.0,59393.0,0.168369]
[1724874087472,0.1,59396.0,59394.0,0.01131367]
[1724874088194,0.29477074,59396.0,59394.0,0.01131367]
[1724874088628,0.29477074,59396.0,59392.0,0.168371]
[1724874088846,0.29477074,59396.0,59395.0,0.01131034]
[1724874088847,0.12640874,59396.0,59395.0,0.01131034]
[1724874089057,0.12640874,59396.0,59393.0,0.168369]
[1724874089282,0.12640874,59396.0,59395.0,0.01131034]
[1724874089720,0.12640874,59396.0,59395.0,0.584992]
[1724874089721,0.02640874,59396.0,59395.0,0.584992]
[1724874089926,0.02640874,59396.0,59395.0,0.93302297]
[1724874091908,0.02640874,59396.0,59395.0,0.01730297]
[1724874092124,0.02640874,59396.0,59395.0,0.18566697]
[1724874092333,0.02640874,59396.0,59395.0,0.01730297]
[1724874092550,0.19476974,59396.0,59395.0,0.01730297]
[1724874092768,0.02640874,59396.0,59395.0,0.01730297]
[1724874092983,0.19476974,59396.0,59395.0,0.01730297]
[1724874093919,0.53149274,59396.0,59395.0,0.01820277]
[1724874094581,0.53149274,59396.0,59395.0,0.0068998]
[1724874095008,0.89461574,59396.0,59395.0,0.0068998]
[1724874095427,1.23133874,59396.0,59395.0,0.0068998]
[1724874095689,1.23133874,59396.0,59395.0,0.0008998]
[1724874097200,1.23533874,59396.0,59395.0,0.0008998]
[1724874097536,1.23133874,59396.0,59395.0,0.0008998]
[1724874097904,1.23733874,59396.0,59395.0,0.0008998]
[1724874098353,1.23133874,59396.0,59395.0,0.0008998]
[1724874098731,1.20893874,59396.0,59395.0,0.0008998]
[1724874099948,1.20493874,59396.0,59395.0,0.0008998]
[1724874100793,1.20693874,59396.0,59395.0,0.0008998]
[1724874101252,0.87021574,59396.0,59395.0,0.0008998]
[1724874101423,0.86821574,59396.0,59395.0,0.0008998]
[1724874101663,0.86921574,59396.0,59395.0,0.0008998]
[1724874102677,0.02740874,59396.0,59395.0,0.0008998]
[1724874103001,0.02740874,59396.0,59395.0,0.01223336]
[1724874103002,0.19576974,59396.0,59395.0,0.01223336]
[1724874103218,0.19476974,59396.0,59395.0,0.0008998]
[1724874103454,0.19476974,59396.0,59395.0,0.01223336]
[1724874103667,0.19476974,59396.0,59395.0,0.0008998]
[1724874103879,0.02640874,59396.0,59395.0,0.26249736]
[1724874104067,0.02640874,59396.0,59395.0,0.2511638]
[1724874104279,0.02640874,59396.0,59395.0,0.5928918]
[1724874104488,0.02640874,59396.0,59395.0,0.94094855]
[1724874104728,0.02640874,59396.0,59395.0,1.00184855]
[1724874104951,0.02640874,59396.0,59395.0,0.99684855]
[1724874105398,0.02640874,59396.0,59395.0,1.33357655]
[1724874105616,0.02640874,59396.0,59395.0,1.36480314]
[1724874106289,0.02722674,59396.0,59395.0,1.36480314]
[1724874106715,0.02722674,59396.0,59395.0,1.37080314]
[1724874107436,0.02722674,59396.0,59395.0,1.36480314]
[1724874107647,0.02822674,59396.0,59395.0,1.37880314]
[1724874114246,0.001818,59396.0,59395.0,1.37880314]
[1724874115840,0.02822315,59396.0,59395.0,1.37880314]
[1724874116282,0.02822315,59396.0,59395.0,1.71553114]
[1724874116497,0.02822315,59396.0,59395.0,1.71753114]
[1724874116950,0.02822315,59396.0,59395.0,1.72253113]
[1724874117164,0.02822315,59396.0,59395.0,2.15925913]
[1724874117421,0.02822315,59396.0,59395.0,2.16925913]
[1724874117643,0.000818,59407.0,59395.0,2.16925913]
[1724874117644,0.000818,59407.0,59406.0,1.26523099]
[1724874118077,0.02721792,59407.0,59406.0,1.27645194]
[1724874118287,0.02721792,59407.0,59406.0,1.33905194]
[1724874118491,0.02721792,59407.0,59406.0,1.67571794]
[1724874118703,0.02721792,59407.0,59406.0,1.67071795]
[1724874120456,0.02721792,59407.0,59406.0,0.99738595]
[1724874120692,0.02821793,59407.0,59406.0,0.18855395]
[1724874120919,0.02821793,59407.0,59406.0,0.02691614]
[1724874121130,0.53320793,59407.0,59406.0,0.02691614]
[1724874121357,0.19654793,59407.0,59406.0,0.02691614]
[1724874121621,0.00100001,59406.0,59404.0,0.168336]
[1724874121841,0.00100001,59406.0,59402.0,0.505029]
[1724874122049,0.00100001,59406.0,59403.0,0.16834]
[1724874122256,0.00100001,59406.0,59403.0,0.168338]
[1724874122891,0.00100001,59406.0,59404.0,0.168338]
[1724874124233,0.00100001,59406.0,59404.0,0.182338]
[1724874124630,0.00100001,59406.0,59405.0,0.168335]
[1724874125894,0.00100001,59406.0,59405.0,0.182335]
[1724874126344,0.00100001,59406.0,59405.0,0.014]
[1724874127665,0.00100001,59406.0,59403.0,0.16834]
[1724874127860,0.16933301,59406.0,59405.0,0.007]
[1724874128320,0.16933301,59406.0,59405.0,0.01292937]
[1724874128501,0.16933301,59406.0,59403.0,0.168341]
[1724874128753,0.16933301,59406.0,59405.0,0.02092937]
[1724874128923,0.00100001,59406.0,59405.0,0.008]
[1724874129163,0.00100001,59406.0,59404.0,0.01293337]
[1724874129405,0.00100001,59399.0,59396.0,0.81352]
[1724874129606,0.23598746,59406.0,59397.0,0.50540786]
[1724874129607,0.00100001,59402.0,59397.0,0.50540786]
[1724874129813,0.00100001,59406.0,59403.0,0.336683]
[1724874130009,0.00100001,59406.0,59403.0,0.16834]
[1724874130241,0.00100001,59406.0,59403.0,0.168341]
[1724874130454,0.19573573,59406.0,59403.0,0.168341]
[1724874130643,0.02740273,59406.0,59403.0,0.0603]
[1724874130867,0.02740273,59406.0,59405.0,0.168335]
[1724874131292,0.02740273,59406.0,59405.0,0.505006]
[1724874131836,0.02740273,59406.0,59405.0,0.168335]
[1724874132448,0.02740273,59406.0,59405.0,0.178335]
[1724874133302,0.02740273,59406.0,59405.0,0.01]
[1724874133498,0.19573573,59406.0,59405.0,0.01]
[1724874133729,0.19573573,59406.0,59402.0,0.168343]
[1724874134129,0.19573573,59406.0,59405.0,0.01]
[1724874134338,0.53240173,59406.0,59405.0,0.01]
[1724874134536,0.53240173,59406.0,59400.0,0.03122659]
[1724874134537,0.168342,59403.0,59400.0,0.03122659]
[1724874134758,0.168342,59403.0,59401.0,0.01295721]
[1724874134957,0.168342,59403.0,59402.0,0.01]
[1724874135165,0.168342,59403.0,59402.0,0.02295321]
[1724874135362,0.16934201,59403.0,59402.0,0.01295321]
[1724874135780,0.16934201,59403.0,59400.0,0.04122659]
[1724874135781,0.168344,59402.0,59400.0,0.04122659]
[1724874135997,0.00100001,59401.0,59400.0,0.04122659]
[1724874136872,0.00100001,59401.0,59400.0,0.03122659]
[1724874137294,0.00079741,59401.0,59400.0,0.03122659]
[1724874138117,0.00079741,59401.0,59400.0,0.04022659]
[1724874138530,0.16914441,59401.0,59400.0,0.04022659]
[1724874138734,1.46981387,59401.0,59400.0,0.009]
[1724874138933,1.53031387,59401.0,59400.0,0.009]
[1724874139406,1.96520094,59401.0,59400.0,0.009]
[1724874139572,1.96520094,59401.0,59395.0,0.0008998]
[1724874139573,1.41531487,59396.0,59395.0,0.0008998]
[1724874139779,1.53041487,59396.0,59395.0,0.0008998]
[1724874139977,1.605775,59396.0,59395.0,0.0008998]
[1724874140177,1.53041487,59396.0,59395.0,0.0008998]
[1724874141184,0.00479741,59396.0,59395.0,0.0008998]
[1724874141386,0.17315841,59396.0,59395.0,0.0008998]
[1724874141587,0.16915841,59396.0,59395.0,0.0008998]
[1724874142006,0.17015841,59396.0,59395.0,0.0008998]
[1724874142671,0.50688141,59396.0,59395.0,0.0008998]
[1724874142876,0.84360441,59396.0,59395.0,0.0008998]
[1724874143062,0.84260441,59396.0,59395.0,0.0008998]
[1724874143320,1.38598238,59396.0,59395.0,0.0008998]
[1724874143529,0.00079741,59370.0,59368.0,0.082]
[1724874143736,0.00079741,59370.0,59364.0,0.57050786]
[1724874143737,0.74208987,59370.0,59364.0,0.50540786]
[1724874144006,1.07895987,59370.0,59369.0,0.01403734]
[1724874144193,1.07895987,59370.0,59369.0,0.0009009]
[1724874144194,0.74208987,59370.0,59369.0,0.0009009]
[1724874144421,0.74208987,59370.0,59369.0,0.01184793]
[1724874144633,0.00079741,59370.0,59369.0,0.01184793]
[1724874144831,0.00079741,59370.0,59369.0,0.0009009]
[1724874145162,0.00079741,59370.0,59369.0,0.01403734]
[1724874145371,0.00079741,59371.0,59369.0,0.01403734]
[1724874146609,0.336851,59374.0,59369.0,0.01403734]
[1724874146610,0.23678487,59370.0,59369.0,0.01403734]
[1724874146855,0.40521987,59370.0,59369.0,0.01703734]
[1724874147219,0.23678487,59370.0,59369.0,0.01703734]
[1724874147393,0.00079741,59370.0,59369.0,0.01403734]
[1724874147591,0.00079741,59370.0,59369.0,0.59985134]
[1724874148000,0.02721383,59370.0,59369.0,0.59985134]
[1724874148193,0.02721383,59370.0,59369.0,0.59785134]
[1724874148438,0.02641642,59370.0,59369.0,0.99862734]
[1724874149809,0.02641642,59370.0,59369.0,0.99562734]
[1724874150017,0.02741642,59370.0,59369.0,0.99562734]
[1724874152566,0.02741642,59370.0,59369.0,1.33250334]